[Event "USA-ch Seniors 2019"]
[Site "Saint Louis"]
[Date "2019.07.11"]
[Round "1.2"]
[White "Goldin, Alexander"]
[Black "Benjamin, Joel"]
[Result "1-0"]
[ECO "A47"]
[WhiteElo "2540"]
[BlackElo "2524"]
[Annotator "RC"]
[PlyCount "95"]
[EventDate "2019.07.09"]
[EventType "tourn"]
[EventCountry "USA"]
[TimeControl "40/5400+30:1800+30"]

1. d4 {[%emt 0:00:00]} Nf6 {[%emt 0:00:00]} 2. Nf3 {[%emt 0:00:38]} b6 {[%emt 0:03:25]} 3. Bg5 {[%emt 0:02:53]} Ne4 {[%emt 0:01:46]} 4. Bh4 {[%emt 0:01:24]} Bb7 {[%emt 0:08:03]} 5. e3 {[%emt 0:06:01]} g6 {[%emt 0:01:43]} 6. Bd3 {[%emt 0:06:04]} Bg7 {[%emt 0:01:07]} 7. O-O {[%emt 0:00:52]} O-O {[%emt 0:06:05]} 8. Nfd2 {[%emt 0:13:07]} Nxd2 {[%emt 0:20:21]} 9. Nxd2 {[%emt 0:00:34]} c5 {[%emt 0:00:59]} 10. c3 {[%emt 0:00:31]} d6 {[%emt 0:01:29]} 11. f4 {[%emt 0:03:00]} Ba6 {[%emt 0:02:35]} 12. Bxa6 {[%emt 0:04:10]} Nxa6 {[%emt 0:01:31]} 13. f5 {[%emt 0:00:37]} Qd7 {[%emt 0:03:16]} 14. Qg4 {[%emt 0:08:14]} Nc7 {[%emt 0:05:53]} 15. Qh3 {[%emt 0:08:43]} f6 {[%emt 0:08:24]} 16. Rf3 {[%emt 0:09:42]} gxf5 {[%emt 0:05:48]} 17. Rxf5 {[%emt 0:02:35]} e6 {[%emt 0:00:19]} 18. Rh5 {[%emt 0:02:41]} cxd4 {[%emt 0:01:59]} 19. exd4 {[%emt 0:01:51]} f5 {[%emt 0:07:20]} 20. Bg5 {[%emt 0:02:27]} Qf7 {[%emt 0:02:31]} 21. Rf1 {[%emt 0:03:09]} Qg6 {[%emt 0:03:37]} 22. Be7 {[%emt 0:01:39]} Nd5 {[%emt 0:05:29]} 23. Rg5 {[%emt 0:04:57]} Nxe7 {[%emt 0:02:33]} 24. Rxg6 {[%emt 0:00:10]} Nxg6 {[%emt 0:00:03]} 25. d5 {[%emt 0:02:34]} exd5 {[%emt 0:02:54]} 26. Qd3 {[%emt 0:03:30]} d4 {[%emt 0:01:18]} 27. cxd4 {[%emt 0:00:12]} Rae8 {[%emt 0:00:27]} 28. Nf3 {[%emt 0:01:28]} Nf4 {[%emt 0:01:08]} 29. Qb3+ {[%emt 0:03:35]} Kh8 {[%emt 0:00:02]} 30. Kh1 {[%emt 0:03:40]} Re2 {[%emt 0:01:16]} 31. Ng5 {[%emt 0:00:33]} h6 {[%emt 0:00:24]} 32. Nf7+ {[%emt 0:00:49]} Kh7 {[%emt 0:00:04]} 33. Nxd6 {[%emt 0:00:38]} Rf6 {[%emt 0:01:06]} 34. Qf3 {[%emt 0:01:24]} Rxd6 {[%emt 0:00:35]} 35. Qxf4 {[%emt 0:00:05]} Rxd4 {[%emt 0:00:51]} 36. Qxf5+ {[%emt 0:00:06]} Kh8 {[%emt 0:00:03]} 37. Qc8+ {[%emt 0:01:49]} Kh7 {[%emt 0:00:03]} 38. Qf5+ {[%emt 0:00:06]} Kh8 {[%emt 0:00:02]} 39. h3 {[%emt 0:02:04]} Rxb2 {[%emt 0:01:46]} 40. Qc8+ {[%emt 0:00:00]} Kh7 {[%emt 0:00:00]} 41. Re1 {[%emt 0:04:28]} Rd5 {[%emt 0:22:04]} 42. Qb7 {[%emt 0:05:50]} Rg5 {[%emt 0:00:38]} 43. Qe4+ {[%emt 0:03:41]} Rg6 {[%emt 0:02:29]} 44. g4 {[%emt 0:07:31]} Rb5 {[%emt 0:06:18]} 45. Qd3 {[%emt 0:00:40]} Re5 {[%emt 0:00:40]} 46. Rxe5 {[%emt 0:00:33]} Bxe5 {[%emt 0:00:01]} 47. h4 {[%emt 0:00:05]} Kg7 {[%emt 0:00:22]} 48. Qd7+ {[%emt 0:00:06]} 1-0

[Event "USA-ch Seniors 2019"]
[Site "Saint Louis"]
[Date "2019.07.12"]
[Round "2.3"]
[White "Novikov, Igor"]
[Black "Fishbein, Alexander"]
[Result "1/2-1/2"]
[ECO "E16"]
[WhiteElo "2556"]
[BlackElo "2432"]
[Annotator "ChessBase"]
[PlyCount "60"]
[EventDate "2019.07.09"]
[EventType "tourn"]
[EventCountry "USA"]
[SourceTitle "playchess.com"]
[Source "ChessBase"]
[SourceQuality "1"]
[TimeControl "40/5400+30:1800+30"]

1. d4 {[%emt 0:00:00]} Nf6 {[%emt 0:00:00]} 2. c4 {[%emt 0:00:00]} e6 {[%emt 0:00:00]} 3. Nf3 {[%emt 0:00:00]} Bb4+ {[%emt 0:00:00]} 4. Bd2 {[%emt 0:00:25]} Qe7 {[%emt 0:00:00]} 5. g3 {[%emt 0:00:38]} Nc6 {[%emt 0:00:02]} 6. Nc3 {[%emt 0:01:01]} Bxc3 {[%emt 0:00:12]} 7. Bxc3 {[%emt 0:00:06]} Ne4 {[%emt 0:00:06]} 8. Qc2 {[%emt 0:01:42]} Nxc3 {[%emt 0:00:05]} 9. Qxc3 {[%emt 0:00:05]} Qb4 {[%emt 0:00:07]} 10. Qxb4 {[%emt 0:03:48]} Nxb4 {[%emt 0:00:05]} 11. Kd2 {[%emt 0:00:09]} b6 {[%emt 0:00:13]} 12. Bg2 {[%emt 0:26:01]} Bb7 {[%emt 0:00:22]} 13. Kc3 {[%emt 0:02:56]} a5 {[%emt 0:02:26]} 14. a3 {[%emt 0:06:32]} Nc6 {[%emt 0:02:47]} 15. b3 {[%emt 0:04:15]} Ne7 {[%emt 0:03:17]} 16. Rhd1 {[%emt 0:01:49]} O-O {[%emt 0:05:34]} 17. Ne1 {[%emt 0:04:33]} Bxg2 {[%emt 0:01:05]} 18. Nxg2 {[%emt 0:00:04]} Rfd8 {[%emt 0:08:23]} 19. Nf4 {[%emt 0:04:32]} d6 {[%emt 0:01:38]} 20. h4 {[%emt 0:03:47]} c6 {[%emt 0:06:15]} 21. Rac1 {[%emt 0:02:18]} e5 {[%emt 0:04:08]} 22. Ng2 {[%emt 0:10:11]} exd4+ {[%emt 0:04:10]} 23. Rxd4 {[%emt 0:00:13]} d5 {[%emt 0:01:41]} 24. Rd3 {[%emt 0:02:06]} c5 {[%emt 0:15:14]} 25. a4 {[%emt 0:05:41]} d4+ {[%emt 0:00:48]} 26. Kd2 {[%emt 0:00:57]} Nc6 {[%emt 0:01:00]} 27. Ke1 {[%emt 0:00:09]} Re8 {[%emt 0:03:12]} 28. Rd2 {[%emt 0:01:06]} h6 {[%emt 0:02:39]} 29. Nf4 {[%emt 0:00:26]} Nb4 {[%emt 0:00:43]} 30. Nd3 {[%emt 0:01:47]} Nxd3+ {[%emt 0:00:12]} 1/2-1/2

[Event "USA-ch Seniors 2019"]
[Site "Saint Louis"]
[Date "2019.07.13"]
[Round "3.2"]
[White "Yermolinsky, Alex"]
[Black "Christiansen, Larry"]
[Result "1-0"]
[ECO "A40"]
[WhiteElo "2504"]
[BlackElo "2574"]
[Annotator "RC"]
[PlyCount "91"]
[EventDate "2019.07.09"]
[EventType "tourn"]
[EventCountry "USA"]
[SourceTitle "playchess.com"]
[Source "ChessBase"]
[SourceQuality "1"]
[TimeControl "40/5400+30:1800+30"]

1. d4 {[%emt 0:00:00]} e6 {[%emt 0:00:42]} 2. c4 {[%emt 0:01:58]} b6 {[%emt 0:00:52]} 3. Nf3 {[%emt 0:02:27]} Bb7 {[%emt 0:01:08]} 4. Nc3 {[%emt 0:00:51]} Bb4 {[%emt 0:03:27]} 5. Bg5 {[%emt 0:00:09]} Ne7 {[%emt 0:00:48]} 6. e3 {[%emt 0:02:33]} f6 {[%emt 0:09:40]} 7. Bf4 {[%emt 0:02:28]} Bxc3+ {[%emt 0:00:33]} 8. bxc3 {[%emt 0:00:06]} d6 {[%emt 0:00:12]} 9. Qc2 {[%emt 0:01:19]} g5 {[%emt 0:09:29]} 10. Bg3 {[%emt 0:00:28]} Qd7 {[%emt 0:01:10]} 11. c5 {[%emt 0:04:30]} Nbc6 {[%emt 0:03:03]} 12. cxd6 {[%emt 0:02:26]} cxd6 {[%emt 0:00:06]} 13. Nd2 {[%emt 0:00:42]} Nf5 {[%emt 0:05:55]} 14. Be2 {[%emt 0:22:22]} O-O-O {[%emt 0:17:33]} 15. e4 {[%emt 0:06:45]} Nxg3 {[%emt 0:00:56]} 16. fxg3 {[%emt 0:00:09]} Kb8 {[%emt 0:02:09]} 17. O-O {[%emt 0:00:16]} Rhf8 {[%emt 0:00:17]} 18. Rf2 {[%emt 0:05:41]} Qc7 {[%emt 0:03:39]} 19. Qd3 {[%emt 0:05:01]} Ne7 {[%emt 0:12:15]} 20. Raf1 {[%emt 0:05:27]} f5 {[%emt 0:00:23]} 21. exf5 {[%emt 0:01:47]} exf5 {[%emt 0:00:41]} 22. Bf3 {[%emt 0:05:25]} d5 {[%emt 0:01:13]} 23. Bd1 {[%emt 0:04:51]} h6 {[%emt 0:03:24]} 24. Re1 {[%emt 0:02:29]} Rf6 {[%emt 0:04:19]} 25. Ba4 {[%emt 0:01:43]} Bc6 {[%emt 0:05:08]} 26. Bb3 {[%emt 0:02:00]} Bb7 {[%emt 0:04:29]} 27. Rfe2 {[%emt 0:04:30]} Nc8 {[%emt 0:00:15]} 28. Re5 {[%emt 0:03:41]} f4 {[%emt 0:01:20]} 29. gxf4 {[%emt 0:01:08]} gxf4 {[%emt 0:00:45]} 30. Nf3 {[%emt 0:01:26]} Qg7 {[%emt 0:00:58]} 31. Qd2 {[%emt 0:01:33]} Rf7 {[%emt 0:01:46]} 32. Re8 {[%emt 0:01:50]} Rxe8 {[%emt 0:00:31]} 33. Rxe8 {[%emt 0:00:05]} Bc6 {[%emt 0:00:05]} 34. Re6 {[%emt 0:00:45]} Bd7 {[%emt 0:00:41]} 35. Re1 {[%emt 0:00:52]} Rf5 {[%emt 0:03:10]} 36. Re5 {[%emt 0:01:32]} Rf6 {[%emt 0:01:40]} 37. Bxd5 {[%emt 0:00:34]} Nd6 {[%emt 0:00:12]} 38. c4 {[%emt 0:02:33]} Bh3 {[%emt 0:00:57]} 39. Kf1 {[%emt 0:01:38]} Bg4 {[%emt 0:00:50]} 40. c5 {[%emt 0:00:00]} Bxf3 {[%emt 0:00:00]} 41. Bxf3 {[%emt 0:05:38]} Nc4 {[%emt 0:00:57]} 42. Re8+ {[%emt 0:01:15]} Kc7 {[%emt 0:00:04]} 43. cxb6+ {[%emt 0:05:17]} Kd7 {[%emt 0:00:52]} 44. Qe2 {[%emt 0:01:28]} Ne3+ {[%emt 0:01:09]} 45. Rxe3 {[%emt 0:00:32]} fxe3 {[%emt 0:00:17]} 46. bxa7 {[%emt 0:01:19]} 1-0

[Event "USA-ch Seniors 2019"]
[Site "Saint Louis"]
[Date "2019.07.13"]
[Round "3.3"]
[White "Fishbein, Alexander"]
[Black "Benjamin, Joel"]
[Result "1/2-1/2"]
[ECO "C85"]
[WhiteElo "2432"]
[BlackElo "2524"]
[Annotator "RC"]
[PlyCount "137"]
[EventDate "2019.07.09"]
[EventType "tourn"]
[EventCountry "USA"]
[SourceTitle "playchess.com"]
[Source "ChessBase"]
[SourceQuality "1"]
[TimeControl "40/5400+30:1800+30"]

1. e4 {[%emt 0:00:00]} e5 {[%emt 0:00:00]} 2. Nf3 {[%emt 0:00:00]} Nc6 {[%emt 0:00:00]} 3. Bb5 {[%emt 0:00:00]} a6 {[%emt 0:00:00]} 4. Ba4 {[%emt 0:00:00]} Nf6 {[%emt 0:00:02]} 5. O-O {[%emt 0:00:00]} Be7 {[%emt 0:00:05]} 6. Bxc6 {[%emt 0:00:24]} dxc6 {[%emt 0:00:09]} 7. d3 {[%emt 0:00:15]} Nd7 {[%emt 0:08:45]} 8. Nbd2 {[%emt 0:00:30]} O-O {[%emt 0:01:57]} 9. Nc4 {[%emt 0:00:13]} f6 {[%emt 0:07:04]} 10. Nh4 {[%emt 0:00:41]} Nb6 {[%emt 0:06:26]} 11. Na5 {[%emt 0:12:38]} Bb4 {[%emt 0:04:02]} 12. Bd2 {[%emt 0:02:15]} Bxa5 {[%emt 0:00:35]} 13. Bxa5 {[%emt 0:00:04]} Be6 {[%emt 0:00:13]} 14. Qd2 {[%emt 0:09:30]} g5 {[%emt 0:10:45]} 15. Nf3 {[%emt 0:02:00]} c5 {[%emt 0:00:37]} 16. b3 {[%emt 0:05:22]} Qe7 {[%emt 0:09:56]} 17. Qc1 {[%emt 0:05:53]} Nc8 {[%emt 0:03:56]} 18. Bd2 {[%emt 0:05:18]} Bg4 {[%emt 0:05:50]} 19. Qd1 {[%emt 0:11:49]} Na7 {[%emt 0:01:24]} 20. h3 {[%emt 0:02:10]} Bh5 {[%emt 0:01:31]} 21. g4 {[%emt 0:01:04]} Bf7 {[%emt 0:00:53]} 22. h4 {[%emt 0:00:38]} Be6 {[%emt 0:02:43]} 23. Nh2 {[%emt 0:01:50]} gxh4 {[%emt 0:07:20]} 24. f4 {[%emt 0:04:07]} exf4 {[%emt 0:00:33]} 25. Rxf4 {[%emt 0:02:12]} Rf7 {[%emt 0:05:30]} 26. Qe1 {[%emt 0:01:47]} Nc6 {[%emt 0:04:10]} 27. Bc3 {[%emt 0:02:33]} Ne5 {[%emt 0:01:37]} 28. Qf2 {[%emt 0:05:25]} Raf8 {[%emt 0:08:43]} 29. Rf1 {[%emt 0:00:29]} Qd6 {[%emt 0:01:25]} 30. Kh1 {[%emt 0:02:14]} b6 {[%emt 0:01:17]} 31. Qe3 {[%emt 0:12:08]} a5 {[%emt 0:02:14]} 32. R4f2 {[%emt 0:02:05]} Bc8 {[%emt 0:02:31]} 33. Qh6 {[%emt 0:00:39]} Ng6 {[%emt 0:00:51]} 34. g5 {[%emt 0:04:55]} fxg5 {[%emt 0:00:51]} 35. Rxf7 {[%emt 0:00:17]} Rxf7 {[%emt 0:00:02]} 36. Rxf7 {[%emt 0:00:07]} Kxf7 {[%emt 0:00:03]} 37. Qxh7+ {[%emt 0:00:20]} Ke8 {[%emt 0:00:28]} 38. Qg8+ {[%emt 0:00:35]} Nf8 {[%emt 0:02:34]} 39. Qxg5 {[%emt 0:00:51]} Qg3 {[%emt 0:01:04]} 40. Qxg3 {[%emt 0:00:00]} hxg3 {[%emt 0:00:00]} 41. Nf1 {[%emt 0:02:34]} Bg4 {[%emt 0:07:45]} 42. Kg2 {[%emt 0:00:48]} Ne6 {[%emt 0:00:24]} 43. Kxg3 {[%emt 0:01:16]} Bh5 {[%emt 0:00:10]} 44. Ne3 {[%emt 0:00:38]} Kd7 {[%emt 0:02:18]} 45. Kf2 {[%emt 0:02:28]} Kd6 {[%emt 0:02:06]} 46. Bf6 {[%emt 0:02:17]} Kd7 {[%emt 0:02:29]} 47. Ke1 {[%emt 0:00:43]} Kd6 {[%emt 0:02:06]} 48. Kd2 {[%emt 0:00:34]} Kd7 {[%emt 0:00:05]} 49. Nc4 {[%emt 0:00:52]} Kc8 {[%emt 0:01:48]} 50. c3 {[%emt 0:01:10]} Be8 {[%emt 0:00:31]} 51. d4 {[%emt 0:01:29]} cxd4 {[%emt 0:00:06]} 52. cxd4 {[%emt 0:00:07]} a4 {[%emt 0:00:34]} 53. b4 {[%emt 0:00:20]} b5 {[%emt 0:01:15]} 54. Nb2 {[%emt 0:02:51]} c6 {[%emt 0:02:57]} 55. a3 {[%emt 0:00:09]} Nf8 {[%emt 0:00:57]} 56. Nd3 {[%emt 0:10:32]} Nd7 {[%emt 0:01:09]} 57. Bg5 {[%emt 0:00:13]} Bg6 {[%emt 0:03:40]} 58. Ke3 {[%emt 0:06:48]} Nb6 {[%emt 0:03:54]} 59. Kf3 {[%emt 0:00:20]} Nc4 {[%emt 0:00:25]} 60. Bc1 {[%emt 0:00:05]} Kd7 {[%emt 0:00:39]} 61. Kf4 {[%emt 0:00:57]} Ke7 {[%emt 0:00:27]} 62. Nc5 {[%emt 0:00:44]} Kf6 {[%emt 0:01:23]} 63. Kg4 {[%emt 0:01:57]} Be8 {[%emt 0:02:00]} 64. e5+ {[%emt 0:04:48]} Kg6 {[%emt 0:00:12]} 65. e6 {[%emt 0:00:49]} Kf6 {[%emt 0:01:34]} 66. Bg5+ {[%emt 0:00:11]} Kg7 {[%emt 0:00:36]} 67. Bc1 {[%emt 0:00:52]} Kf6 {[%emt 0:00:06]} 68. Bg5+ {[%emt 0:00:54]} Kg7 {[%emt 0:00:03]} 69. Bc1 {[%emt 0:00:39]} 1/2-1/2

[Event "USA-ch Seniors 2019"]
[Site "Saint Louis"]
[Date "2019.07.15"]
[Round "5.1"]
[White "Yermolinsky, Alex"]
[Black "Ehlvest, Jaan"]
[Result "1/2-1/2"]
[ECO "E95"]
[WhiteElo "2504"]
[BlackElo "2515"]
[Annotator "ChessBase"]
[PlyCount "60"]
[EventDate "2019.07.09"]
[EventType "tourn"]
[EventCountry "USA"]
[SourceTitle "playchess.com"]
[Source "ChessBase"]
[SourceQuality "1"]
[TimeControl "40/5400+30:1800+30"]

1. d4 {[%emt 0:00:00]} Nf6 {[%emt 0:00:00]} 2. c4 {[%emt 0:00:00]} g6 {[%emt 0:00:00]} 3. Nc3 {[%emt 0:00:00]} Bg7 {[%emt 0:00:00]} 4. e4 {[%emt 0:00:03]} d6 {[%emt 0:00:00]} 5. Be2 {[%emt 0:01:43]} Nbd7 {[%emt 0:04:30]} 6. Nf3 {[%emt 0:04:07]} e5 {[%emt 0:00:23]} 7. O-O {[%emt 0:00:25]} O-O {[%emt 0:00:21]} 8. Re1 {[%emt 0:02:52]} Re8 {[%emt 0:01:06]} 9. d5 {[%emt 0:11:54]} Nc5 {[%emt 0:06:16]} 10. Bg5 {[%emt 0:01:19]} h6 {[%emt 0:00:35]} 11. Bxf6 {[%emt 0:00:03]} Bxf6 {[%emt 0:00:24]} 12. b4 {[%emt 0:00:10]} Nd7 {[%emt 0:00:03]} 13. Qc2 {[%emt 0:01:44]} Be7 {[%emt 0:03:26]} 14. Rad1 {[%emt 0:02:52]} Rf8 {[%emt 0:03:51]} 15. g3 {[%emt 0:03:21]} h5 {[%emt 0:05:48]} 16. Bf1 {[%emt 0:08:17]} h4 {[%emt 0:07:21]} 17. Bg2 {[%emt 0:01:59]} Kg7 {[%emt 0:00:34]} 18. Na4 {[%emt 0:06:21]} hxg3 {[%emt 0:12:58]} 19. hxg3 {[%emt 0:00:06]} Rh8 {[%emt 0:13:07]} 20. c5 {[%emt 0:02:10]} Nf6 {[%emt 0:05:39]} 21. Nb2 {[%emt 0:02:03]} Bg4 {[%emt 0:13:14]} 22. Nc4 {[%emt 0:02:58]} Rh5 {[%emt 0:01:01]} 23. Ne3 {[%emt 0:03:47]} Bd7 {[%emt 0:03:16]} 24. a4 {[%emt 0:04:15]} Qe8 {[%emt 0:03:35]} 25. Ra1 {[%emt 0:02:38]} Rc8 {[%emt 0:00:27]} 26. Nd2 {[%emt 0:08:16]} Rh8 {[%emt 0:03:26]} 27. Ndc4 {[%emt 0:04:58]} Qg8 {[%emt 0:01:04]} 28. Na5 {[%emt 0:13:06]} dxc5 {[%emt 0:02:42]} 29. Nxb7 {[%emt 0:04:24]} cxb4 {[%emt 0:00:53]} 30. Qb2 {[%emt 0:00:06]} Rh5 {[%emt 0:03:37]} 1/2-1/2

[Event "USA-ch Seniors 2019"]
[Site "Saint Louis"]
[Date "2019.07.15"]
[Round "5.2"]
[White "Fishbein, Alexander"]
[Black "Goldin, Alexander"]
[Result "0-1"]
[ECO "C60"]
[WhiteElo "2432"]
[BlackElo "2540"]
[Annotator "ChessBase"]
[PlyCount "66"]
[EventDate "2019.07.09"]
[EventType "tourn"]
[EventCountry "USA"]
[SourceTitle "playchess.com"]
[Source "ChessBase"]
[SourceQuality "1"]
[TimeControl "40/5400+30:1800+30"]

1. e4 {[%emt 0:00:00]} e5 {[%emt 0:00:00]} 2. Nf3 {[%emt 0:00:00]} Nc6 {[%emt 0:00:00]} 3. Bb5 {[%emt 0:00:00]} g6 {[%emt 0:01:06]} 4. O-O {[%emt 0:02:25]} Bg7 {[%emt 0:00:33]} 5. c3 {[%emt 0:01:45]} d6 {[%emt 0:06:36]} 6. d4 {[%emt 0:02:41]} Bd7 {[%emt 0:00:37]} 7. Re1 {[%emt 0:03:34]} a6 {[%emt 0:07:52]} 8. Bc4 {[%emt 0:07:40]} b5 {[%emt 0:17:47]} 9. Bd5 {[%emt 0:06:18]} Nge7 {[%emt 0:02:06]} 10. dxe5 {[%emt 0:01:24]} dxe5 {[%emt 0:06:29]} 11. Be3 {[%emt 0:07:27]} Nxd5 {[%emt 0:04:07]} 12. exd5 {[%emt 0:01:57]} Ne7 {[%emt 0:00:23]} 13. Bc5 {[%emt 0:05:22]} f6 {[%emt 0:03:06]} 14. Qb3 {[%emt 0:06:43]} Bg4 {[%emt 0:10:27]} 15. c4 {[%emt 0:01:56]} bxc4 {[%emt 0:02:50]} 16. Qa3 {[%emt 0:04:16]} Nxd5 {[%emt 0:03:45]} 17. Nc3 {[%emt 0:09:13]} Nxc3 {[%emt 0:07:04]} 18. Qxc3 {[%emt 0:01:27]} Qd5 {[%emt 0:02:32]} 19. Qa3 {[%emt 0:06:31]} Rd8 {[%emt 0:00:55]} 20. Nd4 {[%emt 0:08:13]} Kf7 {[%emt 0:01:15]} 21. Ne2 {[%emt 0:01:31]} Qc6 {[%emt 0:03:57]} 22. Nc3 {[%emt 0:01:11]} Rd3 {[%emt 0:00:32]} 23. Qa5 {[%emt 0:04:04]} Rb8 {[%emt 0:03:01]} 24. Ba3 {[%emt 0:00:25]} Bh6 {[%emt 0:02:49]} 25. Qa4 {[%emt 0:02:52]} Qxa4 {[%emt 0:00:52]} 26. Nxa4 {[%emt 0:00:01]} a5 {[%emt 0:03:42]} 27. Re4 {[%emt 0:01:41]} Rd4 {[%emt 0:02:03]} 28. Rae1 {[%emt 0:01:16]} Bf5 {[%emt 0:02:08]} 29. Rxd4 {[%emt 0:00:55]} exd4 {[%emt 0:00:05]} 30. Re7+ {[%emt 0:00:48]} Kg8 {[%emt 0:00:05]} 31. Rxc7 {[%emt 0:00:45]} c3 {[%emt 0:00:53]} 32. g4 {[%emt 0:02:33]} c2 {[%emt 0:00:42]} 33. gxf5 {[%emt 0:00:15]} d3 {[%emt 0:00:58]} 0-1

[Event "USA-ch Seniors 2019"]
[Site "Saint Louis"]
[Date "2019.07.15"]
[Round "5.3"]
[White "Shabalov, Alexander"]
[Black "Christiansen, Larry"]
[Result "1/2-1/2"]
[ECO "B01"]
[WhiteElo "2500"]
[BlackElo "2574"]
[Annotator "ChessBase"]
[PlyCount "78"]
[EventDate "2019.07.09"]
[EventType "tourn"]
[EventCountry "USA"]
[SourceTitle "playchess.com"]
[Source "ChessBase"]
[SourceQuality "1"]
[TimeControl "40/5400+30:1800+30"]

1. e4 {[%emt 0:00:00]} d5 {[%emt 0:00:00]} 2. exd5 {[%emt 0:00:00]} Qxd5 {[%emt 0:00:02]} 3. Nc3 {[%emt 0:00:43]} Qd6 {[%emt 0:00:20]} 4. d4 {[%emt 0:00:35]} Nf6 {[%emt 0:00:13]} 5. Nf3 {[%emt 0:04:25]} a6 {[%emt 0:01:15]} 6. g3 {[%emt 0:04:54]} Bg4 {[%emt 0:01:55]} 7. Bg2 {[%emt 0:00:50]} Nc6 {[%emt 0:00:07]} 8. O-O {[%emt 0:03:15]} O-O-O {[%emt 0:00:38]} 9. Bf4 {[%emt 0:17:28]} Qb4 {[%emt 0:00:57]} 10. d5 {[%emt 0:00:04]} e5 {[%emt 0:03:04]} 11. a3 {[%emt 0:20:25]} Qc4 {[%emt 0:12:05]} 12. Bg5 {[%emt 0:15:42]} Bxf3 {[%emt 0:07:45]} 13. Qxf3 {[%emt 0:04:52]} Nd4 {[%emt 0:00:12]} 14. Qd1 {[%emt 0:01:38]} h6 {[%emt 0:04:20]} 15. Be3 {[%emt 0:03:03]} Kb8 {[%emt 0:00:51]} 16. Qd2 {[%emt 0:00:51]} Nf5 {[%emt 0:10:49]} 17. b3 {[%emt 0:05:18]} Qg4 {[%emt 0:00:07]} 18. Rfe1 {[%emt 0:05:31]} Nxe3 {[%emt 0:01:53]} 19. Qxe3 {[%emt 0:00:05]} Bd6 {[%emt 0:00:56]} 20. Na4 {[%emt 0:00:10]} Qd4 {[%emt 0:01:06]} 21. Qe2 {[%emt 0:02:33]} e4 {[%emt 0:04:25]} 22. c4 {[%emt 0:00:09]} Rhe8 {[%emt 0:01:37]} 23. Rad1 {[%emt 0:00:34]} Qe5 {[%emt 0:00:10]} 24. b4 {[%emt 0:00:24]} h5 {[%emt 0:02:56]} 25. Rb1 {[%emt 0:01:18]} h4 {[%emt 0:23:14]} 26. b5 {[%emt 0:00:34]} hxg3 {[%emt 0:00:05]} 27. hxg3 {[%emt 0:00:04]} Nd7 {[%emt 0:01:34]} 28. bxa6 {[%emt 0:02:15]} b6 {[%emt 0:00:31]} 29. Qc2 {[%emt 0:00:15]} Nc5 {[%emt 0:04:32]} 30. Nxc5 {[%emt 0:02:30]} Bxc5 {[%emt 0:00:05]} 31. Rxe4 {[%emt 0:00:19]} Qd6 {[%emt 0:01:29]} 32. Qd3 {[%emt 0:04:22]} Rxe4 {[%emt 0:01:20]} 33. Bxe4 {[%emt 0:00:01]} Ka7 {[%emt 0:00:27]} 34. a4 {[%emt 0:00:07]} f5 {[%emt 0:01:37]} 35. Bxf5 {[%emt 0:01:26]} Rf8 {[%emt 0:00:36]} 36. Rf1 {[%emt 0:00:16]} Qe5 {[%emt 0:01:54]} 37. Bg4 {[%emt 0:00:08]} Rxf2 {[%emt 0:00:26]} 38. Rxf2 {[%emt 0:00:20]} Qe1+ {[%emt 0:00:05]} 39. Kg2 {[%emt 0:00:31]} Qxf2+ {[%emt 0:00:25]} 1/2-1/2

[Event "USA-ch Seniors 2019"]
[Site "Saint Louis"]
[Date "2019.07.15"]
[Round "5.4"]
[White "Kaidanov, Gregory"]
[Black "Benjamin, Joel"]
[Result "1/2-1/2"]
[ECO "A05"]
[WhiteElo "2544"]
[BlackElo "2524"]
[Annotator "ChessBase"]
[PlyCount "90"]
[EventDate "2019.07.09"]
[EventType "tourn"]
[EventCountry "USA"]
[SourceTitle "playchess.com"]
[Source "ChessBase"]
[SourceQuality "1"]
[TimeControl "40/5400+30:1800+30"]

1. Nf3 {[%emt 0:00:00]} Nf6 {[%emt 0:00:00]} 2. g3 {[%emt 0:00:00]} b6 {[%emt 0:01:55]} 3. Bg2 {[%emt 0:00:00]} Bb7 {[%emt 0:00:04]} 4. O-O {[%emt 0:00:49]} g6 {[%emt 0:00:06]} 5. c4 {[%emt 0:04:35]} Bg7 {[%emt 0:01:07]} 6. Nc3 {[%emt 0:00:37]} O-O {[%emt 0:02:15]} 7. d4 {[%emt 0:09:28]} Ne4 {[%emt 0:00:31]} 8. Nxe4 {[%emt 0:04:01]} Bxe4 {[%emt 0:00:06]} 9. Be3 {[%emt 0:05:15]} d5 {[%emt 0:10:30]} 10. Rc1 {[%emt 0:03:29]} Nc6 {[%emt 0:14:53]} 11. Qa4 {[%emt 0:11:28]} Qe8 {[%emt 0:06:32]} 12. Rfd1 {[%emt 0:09:12]} Rd8 {[%emt 0:13:17]} 13. Ne1 {[%emt 0:10:57]} Bxg2 {[%emt 0:08:34]} 14. Kxg2 {[%emt 0:02:39]} e5 {[%emt 0:12:08]} 15. cxd5 {[%emt 0:01:33]} exd4 {[%emt 0:00:59]} 16. Qxc6 {[%emt 0:05:42]} Qe4+ {[%emt 0:02:05]} 17. Nf3 {[%emt 0:03:13]} dxe3 {[%emt 0:00:04]} 18. Rc4 {[%emt 0:02:41]} Qf5 {[%emt 0:01:58]} 19. fxe3 {[%emt 0:05:36]} Rfe8 {[%emt 0:02:19]} 20. Rd3 {[%emt 0:04:36]} Re7 {[%emt 0:02:08]} 21. b3 {[%emt 0:02:31]} Rd6 {[%emt 0:04:41]} 22. Qa8+ {[%emt 0:01:11]} Bf8 {[%emt 0:00:06]} 23. Rf4 {[%emt 0:00:52]} Qd7 {[%emt 0:00:39]} 24. Rc4 {[%emt 0:05:39]} Qf5 {[%emt 0:05:05]} 25. Rf4 {[%emt 0:03:15]} Qd7 {[%emt 0:00:20]} 26. Kf2 {[%emt 0:01:07]} c5 {[%emt 0:03:55]} 27. dxc6 {[%emt 0:00:08]} Qxc6 {[%emt 0:00:03]} 28. Qxc6 {[%emt 0:00:20]} Rxc6 {[%emt 0:00:01]} 29. Nd4 {[%emt 0:02:12]} Rc1 {[%emt 0:01:12]} 30. Nb5 {[%emt 0:00:38]} Bh6 {[%emt 0:00:44]} 31. Rf3 {[%emt 0:00:25]} Kg7 {[%emt 0:02:44]} 32. g4 {[%emt 0:00:21]} Bg5 {[%emt 0:00:28]} 33. a4 {[%emt 0:00:48]} a6 {[%emt 0:01:19]} 34. Nc3 {[%emt 0:00:34]} Bh4+ {[%emt 0:00:34]} 35. Kg2 {[%emt 0:00:01]} Rc2 {[%emt 0:00:13]} 36. Kh3 {[%emt 0:00:52]} Bg5 {[%emt 0:00:59]} 37. Kg3 {[%emt 0:00:32]} Re6 {[%emt 0:00:41]} 38. h4 {[%emt 0:00:57]} Be7 {[%emt 0:00:58]} 39. g5 {[%emt 0:00:25]} Bb4 {[%emt 0:01:51]} 40. Nd5 {[%emt 0:00:00]} Be1+ {[%emt 0:00:00]} 41. Kh3 {[%emt 0:05:13]} Rd2 {[%emt 0:17:25]} 42. Nf4 {[%emt 0:18:07]} Re7 {[%emt 0:01:55]} 43. Nd5 {[%emt 0:06:21]} Re6 {[%emt 0:01:10]} 44. Nf4 {[%emt 0:02:38]} Re7 {[%emt 0:00:29]} 45. Nd5 {[%emt 0:00:50]} Re6 {[%emt 0:03:15]} 1/2-1/2